{"text_format":"1","workbook":"xlsx","n_sheets":3,"sheets":["Sheet1","Sheet2","Sheet3"],"not_rendered":{"charts":0,"images":0,"macros":1,"external_links":0,"defined_names":0,"comments":0,"pivot_tables":0},"unopened":[],"bounds":{"document_bytes":16777216,"sheet_cells":100000,"rows_first":2000,"rows_last":500,"rows_between":2000,"halvings":0,"cell_chars":16384,"cell_head_chars":4096},"cells_cut":0,"cells_raw":0,"read":"whole","date_system":"1900"}

{"sheet":"Sheet1","index":0,"n_rows":21,"n_cols":3,"rows_kept":21,"cut":false,"hidden":false,"merged":[]}
["Values","Pattern","Count"]
["ABC abc aBc","AbC",{"$f":"CountStringsCellRange(A2,B2)","v":0}]
["AbC","AbC",1]
["abc","[A-Z]",{"$f":"CountStringsCellRange(A4,B4)","v":0}]
["ABC","[A-Z]",{"$f":"CountStringsCellRange(A5,B5)","v":3}]
["aB","[A-Z][a-z]",{"$f":"CountStringsCellRange(A6,B6)","v":0}]
["Ab","[A-Z][a-z]",{"$f":"CountStringsCellRange(A7,B7)","v":1}]
["ABCD abcd aBcD","[A-Z]{4}",{"$f":"CountStringsCellRange(A8,B8)","v":1}]
[" A AA AAA B","A+",{"$f":"CountStringsCellRange(A9,B9)","v":3}]
["A A","A?",{"$f":"CountStringsCellRange(A10,B10)","v":4}]
["BA","A*",{"$f":"CountStringsCellRange(A11,B11)","v":3}]
["AbA AAB ACA","A.A",{"$f":"CountStringsCellRange(A12,B12)","v":2}]
["ABCD","A|C",{"$f":"CountStringsCellRange(A13,B13)","v":2}]
["ABCD","[^A]",{"$f":"CountStringsCellRange(A14,B14)","v":3}]
["A?A","\\?",{"$f":"CountStringsCellRange(A15,B15)","v":1}]
["ABC DCE","^ABC",{"$f":"CountStringsCellRange(A16,B16)","v":1}]
["ABC DCE","DCE$",{"$f":"CountStringsCellRange(A17,B17)","v":1}]
["ABC DCE","BC$",{"$f":"CountStringsCellRange(A18,B18)","v":0}]
["WABAB","W(AB){2}",{"$f":"CountStringsCellRange(A19,B19)","v":1}]
["WABAB","WABAB",{"$f":"CountStringsCellRange(A20,B20)","v":1}]
["A red fox 555-412395 a blue whale 555-538164 a brown moose","[0-9]{3}-[0-9]{6}",{"$f":"CountStringsCellRange(A21,B21)","v":2}]

{"sheet":"Sheet2","index":1,"n_rows":0,"n_cols":0,"rows_kept":0,"cut":false,"hidden":false,"merged":[]}

{"sheet":"Sheet3","index":2,"n_rows":0,"n_cols":0,"rows_kept":0,"cut":false,"hidden":false,"merged":[]}